[Event "15th Deltalift Open 2018"]
[Site "Halmstad"]
[Date "2018.05.10"]
[Round "1"]
[White "Holst, Peter"]
[Black "Bellon Lopez, Juan Manuel"]
[Result "1-0"]
[ECO "B43"]
[WhiteElo "1896"]
[BlackElo "2344"]
[Annotator "ChessBase"]
[PlyCount "99"]
[EventDate "2018.??.??"]
[EventType "swiss"]
[EventCountry "SWE"]
[SourceTitle "playchess.com"]
[Source "ChessBase"]
[SourceQuality "1"]
[TimeControl "1800+12"]

1. e4 {[%emt 0:00:00]} c5 {[%emt 0:00:06]} 2. Nf3 {[%emt 0:00:02]} e6 {[%emt 0:00:04]} 3. d4 {[%emt 0:00:05]} cxd4 {[%emt 0:00:04]} 4. Nxd4 {[%emt 0:00:07]} a6 {[%emt 0:00:05]} 5. Nc3 {[%emt 0:00:28]} b5 {[%emt 0:00:15]} 6. Be3 {[%emt 0:00:32]} Bb7 {[%emt 0:00:23]} 7. f3 {[%emt 0:00:12]} Bb4 {[%emt 0:00:39]} 8. Qd2 {[%emt 0:01:51]} Qc7 {[%emt 0:00:13]} 9. a3 {[%emt 0:01:12]} Bxc3 {[%emt 0:01:11]} 10. bxc3 {[%emt 0:00:11]} Nf6 {[%emt 0:00:16]} 11. a4 {[%emt 0:12:29]} bxa4 {[%emt 0:00:17]} 12. Rxa4 {[%emt 0:00:33]} d5 {[%emt 0:00:25]} 13. exd5 {[%emt 0:01:51]} Nxd5 {[%emt 0:00:05]} 14. c4 {[%emt 0:06:01]} Nxe3 {[%emt 0:00:49]} 15. Qxe3 {[%emt 0:00:09]} O-O {[%emt 0:01:40]} 16. Bd3 {[%emt 0:02:44]} Rd8 {[%emt 0:03:36]} 17. Nb3 {[%emt 0:02:35]} Nd7 {[%emt 0:00:19]} 18. O-O {[%emt 0:01:08]} Qe5 {[%emt 0:00:31]} 19. Re1 {[%emt 0:00:24]} Qxe3+ {[%emt 0:00:03]} 20. Rxe3 {[%emt 0:00:02]} Rac8 {[%emt 0:03:12]} 21. Kf2 {[%emt 0:00:25]} Nc5 {[%emt 0:00:22]} 22. Nxc5 {[%emt 0:00:20]} Rxc5 {[%emt 0:00:02]} 23. Re1 {[%emt 0:01:17]} g6 {[%emt 0:01:13]} 24. Rb1 {[%emt 0:00:28]} Rd7 {[%emt 0:00:16]} 25. Rb6 {[%emt 0:01:23]} Kf8 {[%emt 0:00:32]} 26. Rab4 {[%emt 0:01:37]} Bc8 {[%emt 0:01:49]} 27. Rb8 {[%emt 0:00:51]} Ke7 {[%emt 0:00:38]} 28. Ra4 {[%emt 0:04:20]} Ra7 {[%emt 0:00:56]} 29. Rb6 {[%emt 0:00:16]} Kd8 {[%emt 0:02:16]} 30. Ke3 {[%emt 0:00:49]} Kc7 {[%emt 0:00:12]} 31. Rb1 {[%emt 0:00:16]} e5 {[%emt 0:01:38]} 32. f4 {[%emt 0:00:47]} exf4+ {[%emt 0:03:00]} 33. Kxf4 {[%emt 0:00:06]} Bd7 {[%emt 0:03:12]} 34. Ra3 {[%emt 0:03:21]} a5 {[%emt 0:00:33]} 35. Ke3 {[%emt 0:00:49]} Bc6 {[%emt 0:01:45]} 36. Rf1 {[%emt 0:01:08]} Re5+ {[%emt 0:02:47]} 37. Kd4 {[%emt 0:00:31]} Re7 {[%emt 0:00:01]} 38. g3 {[%emt 0:00:18]} a4 {[%emt 0:00:03]} 39. Rf6 {[%emt 0:00:08]} Ra5 {[%emt 0:00:13]} 40. c5 {[%emt 0:03:47]} Rd7+ {[%emt 0:03:18]} 41. Kc4 {[%emt 0:00:46]} Ra7 {[%emt 0:01:16]} 42. Kc3 {[%emt 0:00:51]} h5 {[%emt 0:01:11]} 43. Bc4 {[%emt 0:00:13]} Be4 {[%emt 0:02:06]} 44. Rxf7 {[%emt 0:00:24]} Kc6 {[%emt 0:00:55]} 45. Rxd7 {[%emt 0:00:22]} Rxd7 {[%emt 0:00:11]} 46. Rxa4 {[%emt 0:00:39]} Bf5 {[%emt 0:02:55]} 47. Bd3 {[%emt 0:01:55]} Rd5 {[%emt 0:00:14]} 48. Bxf5 {[%emt 0:00:54]} gxf5 {[%emt 0:00:59]} 49. Rh4 {[%emt 0:00:26]} Rxc5+ {[%emt 0:00:51]} 50. Rc4 {[%emt 0:00:03]} 1-0

[Event "15th Deltalift Open 2018"]
[Site "Halmstad"]
[Date "2018.05.10"]
[Round "1"]
[White "Westergren, Bertil"]
[Black "Pantzar, Milton"]
[Result "0-1"]
[ECO "A50"]
[WhiteElo "1891"]
[BlackElo "2333"]
[Annotator "NA"]
[PlyCount "52"]
[EventDate "2018.??.??"]
[EventType "swiss"]
[EventCountry "SWE"]
[SourceTitle "playchess.com"]
[Source "ChessBase"]
[SourceQuality "1"]
[TimeControl "1800+12"]

1. d4 {[%emt 0:00:11]} Nf6 {[%emt 0:00:15]} 2. c4 {[%emt 0:00:21]} Nc6 {[%emt 0:01:16]} 3. Nc3 {[%emt 0:02:46]} e5 {[%emt 0:00:57]} 4. d5 {[%emt 0:06:35]} Ne7 {[%emt 0:00:31]} 5. e4 {[%emt 0:00:37]} Ng6 {[%emt 0:01:19]} 6. Nf3 {[%emt 0:05:36]} Bc5 {[%emt 0:01:55]} 7. Be2 {[%emt 0:04:49]} O-O {[%emt 0:02:50]} 8. Qc2 {[%emt 0:02:37]} d6 {[%emt 0:02:18]} 9. Na4 {[%emt 0:02:45]} Bb4+ {[%emt 0:01:00]} 10. Bd2 {[%emt 0:00:20]} Bxd2+ {[%emt 0:00:19]} 11. Nxd2 {[%emt 0:00:17]} Bg4 {[%emt 0:05:20]} 12. f3 {[%emt 0:01:28]} Bd7 {[%emt 0:00:05]} 13. g3 {[%emt 0:00:34]} c6 {[%emt 0:00:42]} 14. Nc3 {[%emt 0:00:37]} Qb6 {[%emt 0:00:59]} 15. O-O-O {[%emt 0:00:34]} cxd5 {[%emt 0:01:02]} 16. cxd5 {[%emt 0:00:31]} Rac8 {[%emt 0:00:35]} 17. Kb1 {[%emt 0:00:21]} Qf2 {[%emt 0:03:34]} 18. Qd3 {[%emt 0:00:48]} Nh5 {[%emt 0:02:33]} 19. Rdf1 {[%emt 0:00:32]} Qb6 {[%emt 0:00:46]} 20. f4 {[%emt 0:03:33]} Nhxf4 {[%emt 0:00:41]} 21. gxf4 {[%emt 0:00:03]} Nxf4 {[%emt 0:00:07]} 22. Qf3 {[%emt 0:00:38]} Rxc3 {[%emt 0:00:12]} 23. Qxc3 {[%emt 0:00:05]} Nxe2 {[%emt 0:00:04]} 24. Qb3 {[%emt 0:03:15]} Qd4 {[%emt 0:03:10]} 25. Qd1 {[%emt 0:07:17]} Bb5 {[%emt 0:01:53]} 26. Rf3 {[%emt 0:01:57]} Rc8 {[%emt 0:01:07]} 0-1

[Event "15th Deltalift Open 2018"]
[Site "Halmstad"]
[Date "2018.05.10"]
[Round "1"]
[White "Klement, Hans"]
[Black "Haugli, Petter"]
[Result "1/2-1/2"]
[ECO "B30"]
[WhiteElo "1870"]
[BlackElo "2245"]
[Annotator "NA"]
[PlyCount "64"]
[EventDate "2018.??.??"]
[EventType "swiss"]
[EventCountry "SWE"]
[SourceTitle "playchess.com"]
[Source "ChessBase"]
[SourceQuality "1"]
[TimeControl "1800+12"]

1. e4 {[%emt 0:00:12]} c5 {[%emt 0:00:09]} 2. Nf3 {[%emt 0:00:24]} e6 {[%emt 0:00:09]} 3. d3 {[%emt 0:00:14]} Nc6 {[%emt 0:00:15]} 4. g3 {[%emt 0:00:22]} Nf6 {[%emt 0:00:19]} 5. Bg2 {[%emt 0:00:08]} Be7 {[%emt 0:00:19]} 6. O-O {[%emt 0:00:25]} O-O {[%emt 0:00:12]} 7. Nbd2 {[%emt 0:02:00]} d6 {[%emt 0:01:28]} 8. c3 {[%emt 0:02:13]} d5 {[%emt 0:06:23]} 9. e5 {[%emt 0:01:10]} Nd7 {[%emt 0:00:13]} 10. Re1 {[%emt 0:00:54]} b6 {[%emt 0:00:29]} 11. Qe2 {[%emt 0:06:15]} Ba6 {[%emt 0:01:28]} 12. Nf1 {[%emt 0:00:50]} Qc7 {[%emt 0:00:41]} 13. h4 {[%emt 0:01:45]} Rae8 {[%emt 0:09:31]} 14. Bf4 {[%emt 0:00:11]} b5 {[%emt 0:01:07]} 15. Ne3 {[%emt 0:02:45]} Nb6 {[%emt 0:01:31]} 16. Ng4 {[%emt 0:01:14]} d4 {[%emt 0:00:16]} 17. cxd4 {[%emt 0:02:48]} Nd5 {[%emt 0:00:06]} 18. Bd2 {[%emt 0:03:43]} cxd4 {[%emt 0:00:57]} 19. Rac1 {[%emt 0:00:08]} Qb6 {[%emt 0:00:14]} 20. Ng5 {[%emt 0:00:42]} Bxg5 {[%emt 0:00:46]} 21. hxg5 {[%emt 0:00:40]} Nce7 {[%emt 0:01:23]} 22. Be4 {[%emt 0:01:02]} Ng6 {[%emt 0:00:54]} 23. Kg2 {[%emt 0:02:03]} Rc8 {[%emt 0:02:11]} 24. Rh1 {[%emt 0:00:27]} Rxc1 {[%emt 0:00:23]} 25. Bxc1 {[%emt 0:00:02]} Bb7 {[%emt 0:00:14]} 26. Nf6+ {[%emt 0:00:38]} Nxf6 {[%emt 0:07:11]} 27. gxf6 {[%emt 0:02:36]} Bxe4+ {[%emt 0:03:23]} 28. Qxe4 {[%emt 0:00:02]} Rc8 {[%emt 0:01:04]} 29. fxg7 {[%emt 0:01:55]} Qc6 {[%emt 0:00:17]} 30. Qxc6 {[%emt 0:01:09]} Rxc6 {[%emt 0:00:03]} 31. f4 {[%emt 0:01:28]} Kxg7 {[%emt 0:02:07]} 32. Kf3 {[%emt 0:00:05]} Ne7 {[%emt 0:00:32]} 1/2-1/2

[Event "15th Deltalift Open 2018"]
[Site "Halmstad"]
[Date "2018.05.10"]
[Round "2"]
[White "Lindberg, Bengt"]
[Black "Petersson, Baldur Teodor"]
[Result "1-0"]
[ECO "B43"]
[WhiteElo "2404"]
[BlackElo "2038"]
[Annotator "ChessBase"]
[PlyCount "63"]
[EventDate "2018.??.??"]
[EventType "swiss"]
[EventCountry "SWE"]
[SourceTitle "playchess.com"]
[Source "ChessBase"]
[SourceQuality "1"]
[TimeControl "1800+12"]

1. e4 {[%emt 0:00:04]} c5 {[%emt 0:01:07]} 2. Nf3 {[%emt 0:00:19]} e6 {[%emt 0:00:45]} 3. d4 {[%emt 0:00:20]} cxd4 {[%emt 0:00:29]} 4. Nxd4 {[%emt 0:00:20]} a6 {[%emt 0:01:03]} 5. Nc3 {[%emt 0:00:19]} Qc7 {[%emt 0:00:27]} 6. Bd3 {[%emt 0:00:46]} Bc5 {[%emt 0:00:35]} 7. Nb3 {[%emt 0:00:41]} Be7 {[%emt 0:00:34]} 8. O-O {[%emt 0:01:27]} Nf6 {[%emt 0:00:26]} 9. f4 {[%emt 0:00:06]} d6 {[%emt 0:00:12]} 10. e5 {[%emt 0:00:24]} dxe5 {[%emt 0:01:12]} 11. fxe5 {[%emt 0:00:05]} Qxe5 {[%emt 0:00:21]} 12. Bf4 {[%emt 0:00:07]} Qh5 {[%emt 0:00:20]} 13. Be2 {[%emt 0:01:28]} Qg6 {[%emt 0:00:21]} 14. Rf3 {[%emt 0:00:07]} Nc6 {[%emt 0:06:31]} 15. Rg3 {[%emt 0:05:16]} Qf5 {[%emt 0:00:15]} 16. Qd2 {[%emt 0:00:17]} Nd5 {[%emt 0:09:36]} 17. Nxd5 {[%emt 0:01:25]} Qxd5 {[%emt 0:00:53]} 18. Rd3 {[%emt 0:00:10]} Qf5 {[%emt 0:00:11]} 19. Rf1 {[%emt 0:05:07]} e5 {[%emt 0:00:41]} 20. Be3 {[%emt 0:00:03]} Qg6 {[%emt 0:00:17]} 21. Bc5 {[%emt 0:00:06]} Bxc5+ {[%emt 0:01:17]} 22. Nxc5 {[%emt 0:00:02]} Nd4 {[%emt 0:00:26]} 23. Rg3 {[%emt 0:03:56]} Qb6 {[%emt 0:02:00]} 24. b4 {[%emt 0:01:56]} Be6 {[%emt 0:02:56]} 25. Bd3 {[%emt 0:03:31]} O-O-O {[%emt 0:00:49]} 26. Qf2 {[%emt 0:00:02]} g6 {[%emt 0:02:58]} 27. Re3 {[%emt 0:02:24]} Bxa2 {[%emt 0:02:03]} 28. c3 {[%emt 0:00:38]} Ne6 {[%emt 0:00:57]} 29. Qxa2 {[%emt 0:00:53]} Nxc5 {[%emt 0:00:02]} 30. Qc4 {[%emt 0:01:00]} Qe6 {[%emt 0:02:57]} 31. Qxc5+ {[%emt 0:00:13]} Kb8 {[%emt 0:00:02]} 32. Bc4 {[%emt 0:00:05]} 1-0

[Event "15th Deltalift Open 2018"]
[Site "Halmstad"]
[Date "2018.05.10"]
[Round "2"]
[White "Lokander, Martin"]
[Black "Jogstad, Daniel"]
[Result "1-0"]
[ECO "A30"]
[WhiteElo "2386"]
[BlackElo "2028"]
[Annotator "NA"]
[PlyCount "59"]
[EventDate "2018.??.??"]
[EventType "swiss"]
[EventCountry "SWE"]
[SourceTitle "playchess.com"]
[Source "ChessBase"]
[SourceQuality "1"]
[TimeControl "1800+12"]

1. Nf3 {[%emt 0:00:04]} Nf6 {[%emt 0:00:13]} 2. c4 {[%emt 0:00:06]} c5 {[%emt 0:00:42]} 3. Nc3 {[%emt 0:00:15]} e6 {[%emt 0:00:54]} 4. g3 {[%emt 0:00:56]} b6 {[%emt 0:01:48]} 5. Bg2 {[%emt 0:00:04]} Bb7 {[%emt 0:00:09]} 6. O-O {[%emt 0:00:05]} d6 {[%emt 0:03:58]} 7. d4 {[%emt 0:00:17]} cxd4 {[%emt 0:00:09]} 8. Qxd4 {[%emt 0:00:10]} Be7 {[%emt 0:02:38]} 9. Rd1 {[%emt 0:00:02]} a6 {[%emt 0:00:16]} 10. b3 {[%emt 0:01:18]} Nbd7 {[%emt 0:00:02]} 11. e4 {[%emt 0:00:30]} O-O {[%emt 0:00:23]} 12. Ba3 {[%emt 0:00:11]} Nc5 {[%emt 0:00:26]} 13. e5 {[%emt 0:00:10]} dxe5 {[%emt 0:01:51]} 14. Qxe5 {[%emt 0:00:04]} Nd3 {[%emt 0:05:54]} 15. Rxd3 {[%emt 0:00:12]} Qxd3 16. Bxe7 {[%emt 0:01:59]} Bxf3 $11 {[%emt 0:00:02]} 17. Bxf8 {[%emt 0:00:49]} Rxf8 {[%emt 0:00:24]} 18. Bxf3 Qxf3 {[%emt 0:00:01]} 19. Qd4 {[%emt 0:01:18]} e5 {[%emt 0:02:22]} 20. Qd2 {[%emt 0:00:01]} h5 {[%emt 0:01:59]} 21. Re1 {[%emt 0:00:14]} Ng4 {[%emt 0:00:30]} 22. Nd5 {[%emt 0:01:24]} Re8 {[%emt 0:02:42]} 23. h3 {[%emt 0:00:37]} Nh6 {[%emt 0:00:02]} 24. Nxb6 {[%emt 0:01:26]} Re6 {[%emt 0:04:28]} 25. Nd5 Qf5 {[%emt 0:03:25]} 26. Ne7+ {[%emt 0:00:30]} Rxe7 {[%emt 0:00:04]} 27. Qd8+ {[%emt 0:00:01]} Kh7 {[%emt 0:00:02]} 28. Qxe7 {[%emt 0:00:01]} Qxh3 {[%emt 0:00:25]} 29. Qxe5 {[%emt 0:00:08]} Ng4 {[%emt 0:00:32]} 30. Qe4+ {[%emt 0:00:02]} 1-0

[Event "15th Deltalift Open 2018"]
[Site "Halmstad"]
[Date "2018.05.10"]
[Round "2"]
[White "Pantzar, Milton"]
[Black "Johnson, Daniel"]
[Result "1/2-1/2"]
[ECO "E05"]
[WhiteElo "2333"]
[BlackElo "2028"]
[Annotator "NA"]
[PlyCount "33"]
[EventDate "2018.??.??"]
[EventType "swiss"]
[EventCountry "SWE"]
[SourceTitle "playchess.com"]
[Source "ChessBase"]
[SourceQuality "1"]
[TimeControl "1800+12"]

1. Nf3 {[%emt 0:00:03]} d5 {[%emt 0:01:02]} 2. g3 {[%emt 0:00:10]} Nf6 {[%emt 0:00:06]} 3. Bg2 {[%emt 0:00:44]} e6 {[%emt 0:01:40]} 4. O-O {[%emt 0:03:15]} Be7 {[%emt 0:00:09]} 5. c4 {[%emt 0:01:07]} O-O {[%emt 0:01:00]} 6. d4 {[%emt 0:00:30]} dxc4 {[%emt 0:00:11]} 7. Qa4 {[%emt 0:00:22]} a6 {[%emt 0:01:22]} 8. Qxc4 {[%emt 0:00:05]} b5 {[%emt 0:00:05]} 9. Qc2 {[%emt 0:00:45]} Bb7 {[%emt 0:00:02]} 10. Bf4 {[%emt 0:00:48]} Nc6 {[%emt 0:08:49]} 11. Rd1 {[%emt 0:03:31]} Nb4 {[%emt 0:07:43]} 12. Qc1 {[%emt 0:00:17]} Rc8 {[%emt 0:02:01]} 13. Ne5 {[%emt 0:13:21]} Bxg2 {[%emt 0:05:10]} 14. Kxg2 {[%emt 0:00:02]} Qd5+ {[%emt 0:02:58]} 15. f3 {[%emt 0:00:09]} c5 {[%emt 0:01:28]} 16. Nc3 {[%emt 0:00:12]} Qb7 {[%emt 0:00:12]} 17. e4 {[%emt 0:02:27]} 1/2-1/2

[Event "15th Deltalift Open 2018"]
[Site "Halmstad"]
[Date "2018.05.10"]
[Round "2"]
[White "Hobber, Anders"]
[Black "Torngren, Gustav"]
[Result "1-0"]
[ECO "A45"]
[WhiteElo "2320"]
[BlackElo "2023"]
[Annotator "NA"]
[PlyCount "99"]
[EventDate "2018.??.??"]
[EventType "swiss"]
[EventCountry "SWE"]
[SourceTitle "playchess.com"]
[Source "ChessBase"]
[SourceQuality "1"]
[TimeControl "1800+12"]

1. d4 {[%emt 0:00:04]} Nf6 {[%emt 0:00:01]} 2. Bf4 {[%emt 0:01:23]} c5 {[%emt 0:00:16]} 3. d5 {[%emt 0:00:48] A45: Trompowsky Attack} e6 {[%emt 0:02:16]} (3... d6 4. Nc3 e5 5. Bd2 Bf5 6. h3 Nbd7 7. g4 Be4 8. f3 Bg6 9. e4 a6 10. a4 Be7 {0-1 (35) Vachier Lagrave,M (2795)-Grischuk,A (2750) chess.com INT 2017}) 4. Nc3 {[%emt 0:00:38]} exd5 {[%emt 0:00:31]} 5. Nxd5 {[%emt 0:00:35]} Nxd5 {[%emt 0:00:08]} 6. Qxd5 {[%emt 0:00:22]} Nc6 {[%emt 0:00:10]} 7. O-O-O {[%emt 0:02:07]} Be7 $146 {[%emt 0:01:04]} ({Predecessor:} 7... d6 8. Bxd6 Bxd6 9. Qxd6 Qa5 {½-½ (9) Aguilar,S (1788)-Kiryushin,A (1825) LSS email 2012}) 8. Bd6 {[%emt 0:01:35]} Bxd6 {[%emt 0:01:17]} 9. Qxd6 {[%emt 0:00:03]} Qe7 {[%emt 0:00:01]} 10. Qxe7+ Kxe7 {[%emt 0:00:14]} 11. Nh3 {[%emt 0:01:25]} d6 {[%emt 0:01:40]} 12. Nf4 {[%emt 0:00:14]} Be6 {[%emt 0:00:23]} 13. g3 {[%emt 0:03:14]} g5 {[%emt 0:00:28]} 14. Nd5+ {[%emt 0:01:10]} Bxd5 {[%emt 0:01:10]} 15. Rxd5 {[%emt 0:00:03]} f6 {[%emt 0:00:02]} 16. Bg2 {[%emt 0:00:10]} Rad8 {[%emt 0:04:51]} 17. c3 {[%emt 0:01:04]} Ne5 {[%emt 0:03:32]} 18. h3 {[%emt 0:01:01]} h5 {[%emt 0:00:30]} 19. f4 {[%emt 0:00:29]} Nc4 {[%emt 0:05:15]} 20. fxg5 {[%emt 0:05:54]} Ne3 {[%emt 0:00:02]} 21. gxf6+ {[%emt 0:00:04]} Kxf6 {[%emt 0:00:02]} 22. Rd3 {[%emt 0:00:17]} Nxg2 {[%emt 0:00:02]} 23. Rg1 {[%emt 0:00:14]} Nh4 {[%emt 0:00:12]} 24. gxh4 {[%emt 0:00:36]} Rh6 {[%emt 0:01:56]} 25. Rg5 {[%emt 0:01:01]} Ke6 {[%emt 0:02:36]} 26. Rxc5 {[%emt 0:00:27]} dxc5 {[%emt 0:00:02]} 27. Rxd8 {[%emt 0:00:02]} Ke5 {[%emt 0:00:09]} 28. Rd7 {[%emt 0:05:00]} Kf4 {[%emt 0:00:41]} 29. Rxb7 {[%emt 0:01:42]} Kg3 {[%emt 0:00:01]} 30. Rxa7 {[%emt 0:00:12]} Kxh4 {[%emt 0:00:03]} 31. Rg7 {[%emt 0:00:51]} Kxh3 {[%emt 0:00:03]} 32. b4 {[%emt 0:00:12]} cxb4 {[%emt 0:00:13]} 33. cxb4 {[%emt 0:00:03]} Re6 {[%emt 0:01:04]} 34. b5 {[%emt 0:00:58]} h4 {[%emt 0:01:16]} 35. a4 {[%emt 0:00:42]} Rxe2 {[%emt 0:04:12]} 36. b6 {[%emt 0:00:31]} Re4 {[%emt 0:00:27]} 37. b7 {[%emt 0:00:19]} Rxa4 {[%emt 0:00:54]} 38. b8=Q {[%emt 0:00:06]} Rc4+ {[%emt 0:00:57]} 39. Kd2 {[%emt 0:02:31]} Rd4+ {[%emt 0:00:39]} 40. Ke3 {[%emt 0:00:42]} Re4+ {[%emt 0:00:04]} 41. Kf3 {[%emt 0:00:10]} Re3+ {[%emt 0:00:15] [#]} 42. Kf4 $1 {[%emt 0:00:02]} Rf3+ {[%emt 0:00:11]} 43. Kg5 {[%emt 0:00:29]} Rf5+ {[%emt 0:00:05]} 44. Kg6 {[%emt 0:00:11]} Rf6+ {[%emt 0:00:17]} 45. Kh5 {[%emt 0:00:21]} Rh6+ {[%emt 0:00:45]} 46. Kg5 {[%emt 0:00:03]} Rh5+ {[%emt 0:00:05]} 47. Kg6 {[%emt 0:00:09]} Rh6+ {[%emt 0:00:49]} 48. Kf7 {[%emt 0:00:07]} Rf6+ {[%emt 0:01:14]} 49. Kg8 {[%emt 0:00:09]} Rf8+ {[%emt 0:02:11]} 50. Qxf8 {[%emt 0:00:05]} 1-0

[Event "15th Deltalift Open 2018"]
[Site "Halmstad"]
[Date "2018.05.10"]
[Round "2"]
[White "Johansson, Mikael"]
[Black "Wahlstrom, Lennart"]
[Result "1/2-1/2"]
[ECO "D34"]
[WhiteElo "2284"]
[BlackElo "2200"]
[Annotator "NA"]
[PlyCount "47"]
[EventDate "2018.??.??"]
[EventType "swiss"]
[EventCountry "SWE"]
[SourceTitle "playchess.com"]
[Source "ChessBase"]
[SourceQuality "1"]
[TimeControl "1800+12"]

1. d4 {[%emt 0:00:14]} d5 {[%emt 0:00:21]} 2. c4 {[%emt 0:00:19]} e6 {[%emt 0:00:09]} 3. Nf3 {[%emt 0:00:29]} c5 {[%emt 0:00:11]} 4. cxd5 {[%emt 0:00:24]} exd5 {[%emt 0:00:05]} 5. g3 {[%emt 0:01:05]} Nc6 {[%emt 0:00:10]} 6. Bg2 {[%emt 0:00:49]} Nf6 {[%emt 0:00:09]} 7. O-O {[%emt 0:00:31]} Be7 {[%emt 0:00:14]} 8. Nc3 {[%emt 0:03:03]} O-O {[%emt 0:01:08]} 9. h3 {[%emt 0:01:16]} Re8 {[%emt 0:01:13]} 10. Be3 {[%emt 0:00:16]} cxd4 {[%emt 0:02:30]} 11. Nxd4 {[%emt 0:00:47]} Be6 {[%emt 0:00:19]} 12. Qc2 {[%emt 0:02:29]} Qd7 {[%emt 0:05:56]} 13. Kh2 {[%emt 0:00:38]} Rac8 {[%emt 0:01:23]} 14. Rac1 {[%emt 0:05:05]} Nxd4 15. Bxd4 {[%emt 0:00:22]} Ne4 {[%emt 0:12:55]} 16. e3 {[%emt 0:03:06]} b5 {[%emt 0:02:00]} 17. Qe2 {[%emt 0:00:50]} Nxc3 {[%emt 0:00:24]} 18. Bxc3 {[%emt 0:00:31]} b4 {[%emt 0:01:37]} 19. Bd4 {[%emt 0:00:17]} a5 {[%emt 0:00:56]} 20. b3 {[%emt 0:03:21]} h6 {[%emt 0:00:11]} 21. Rfd1 {[%emt 0:00:10]} Rxc1 {[%emt 0:00:10]} 22. Rxc1 {[%emt 0:00:15]} Rc8 {[%emt 0:00:07]} 23. Qb2 {[%emt 0:00:28]} Bf8 {[%emt 0:00:18]} 24. Rc2 {[%emt 0:00:28]} 1/2-1/2

[Event "15th Deltalift Open 2018"]
[Site "Halmstad"]
[Date "2018.05.10"]
[Round "2"]
[White "Kucuksari, Kaan"]
[Black "Bohman Karlholm, Adrian"]
[Result "1-0"]
[ECO "D34"]
[WhiteElo "2264"]
[BlackElo "2019"]
[Annotator "NA"]
[PlyCount "39"]
[EventDate "2018.??.??"]
[EventType "swiss"]
[EventCountry "SWE"]
[SourceTitle "playchess.com"]
[Source "ChessBase"]
[SourceQuality "1"]
[TimeControl "1800+12"]

1. d4 {[%emt 0:00:08]} d5 {[%emt 0:00:28]} 2. Nf3 {[%emt 0:00:08]} Nf6 {[%emt 0:01:44]} 3. c4 {[%emt 0:00:05]} e6 {[%emt 0:01:51]} 4. g3 {[%emt 0:00:23]} Be7 {[%emt 0:04:14]} 5. Bg2 {[%emt 0:00:00]} O-O {[%emt 0:00:15]} 6. O-O {[%emt 0:00:03]} c5 {[%emt 0:01:38]} 7. cxd5 {[%emt 0:00:08]} exd5 {[%emt 0:00:07]} 8. Nc3 {[%emt 0:00:02]} Nc6 {[%emt 0:00:12]} 9. Bg5 {[%emt 0:00:26]} cxd4 {[%emt 0:00:35]} 10. Nxd4 {[%emt 0:00:02]} h6 {[%emt 0:00:44]} 11. Be3 {[%emt 0:00:07]} Re8 {[%emt 0:00:56]} 12. Rc1 {[%emt 0:00:11]} Be6 {[%emt 0:00:24]} 13. Qa4 {[%emt 0:08:38]} Nxd4 {[%emt 0:00:07]} 14. Bxd4 {[%emt 0:00:07]} a6 {[%emt 0:00:24]} 15. Rfd1 {[%emt 0:01:16]} Rc8 {[%emt 0:07:34]} 16. Bxf6 {[%emt 0:02:56]} Bxf6 {[%emt 0:00:21]} 17. Bxd5 {[%emt 0:00:45]} Bxd5 {[%emt 0:02:17]} 18. Nxd5 {[%emt 0:00:36]} Bxb2 {[%emt 0:04:28]} 19. Qxe8+ {[%emt 0:00:28]} Qxe8 {[%emt 0:00:00]} 20. Rxc8 1-0

[Event "15th Deltalift Open 2018"]
[Site "Halmstad"]
[Date "2018.05.10"]
[Round "2"]
[White "Tuomainen, Felix"]
[Black "Troberg Eskola, Love"]
[Result "0-1"]
[ECO "D20"]
[WhiteElo "2211"]
[BlackElo "1993"]
[Annotator "NA"]
[PlyCount "88"]
[EventDate "2018.??.??"]
[EventType "swiss"]
[EventCountry "SWE"]
[SourceTitle "playchess.com"]
[Source "ChessBase"]
[SourceQuality "1"]
[TimeControl "1800+12"]

1. d4 {[%emt 0:00:18]} d5 {[%emt 0:00:10]} 2. c4 {[%emt 0:00:20]} dxc4 {[%emt 0:00:05]} 3. e3 {[%emt 0:00:34]} b5 {[%emt 0:00:09]} 4. a4 {[%emt 0:00:55]} b4 {[%emt 0:00:05]} 5. Bxc4 {[%emt 0:00:25]} e6 {[%emt 0:00:05]} 6. Nf3 {[%emt 0:00:25]} Nf6 {[%emt 0:00:00]} 7. O-O {[%emt 0:00:15]} Be7 {[%emt 0:00:00]} 8. Qe2 {[%emt 0:00:19]} O-O {[%emt 0:00:28]} 9. e4 {[%emt 0:01:04]} c5 {[%emt 0:00:18]} 10. Rd1 {[%emt 0:01:11]} Qc7 {[%emt 0:02:21]} 11. Bg5 {[%emt 0:00:26]} h6 {[%emt 0:00:08]} 12. Bh4 {[%emt 0:00:03]} cxd4 {[%emt 0:01:19]} 13. Nxd4 {[%emt 0:00:11]} Nbd7 {[%emt 0:01:31]} 14. Nb5 {[%emt 0:00:19]} Qc5 {[%emt 0:00:52]} 15. Nd2 {[%emt 0:00:17]} Ne5 {[%emt 0:00:18]} 16. Bb3 {[%emt 0:00:39]} a6 {[%emt 0:00:50]} 17. Rac1 {[%emt 0:00:06]} Qb6 {[%emt 0:00:13]} 18. Bg3 {[%emt 0:02:14]} axb5 {[%emt 0:02:23]} 19. Bxe5 {[%emt 0:00:07]} bxa4 {[%emt 0:00:21]} 20. Ba2 {[%emt 0:01:32]} b3 {[%emt 0:00:14]} 21. Bb1 {[%emt 0:00:01]} Ba6 {[%emt 0:00:08]} 22. Bd3 {[%emt 0:01:00]} Bxd3 {[%emt 0:00:38]} 23. Qxd3 {[%emt 0:00:01]} Rfd8 {[%emt 0:00:12]} 24. Qg3 {[%emt 0:00:13]} Rdc8 {[%emt 0:00:47]} 25. Nc4 {[%emt 0:00:07]} Qc6 {[%emt 0:00:38]} 26. Bxf6 {[%emt 0:00:49]} Bxf6 {[%emt 0:00:17]} 27. e5 {[%emt 0:00:02]} Bg5 {[%emt 0:01:26]} 28. f4 {[%emt 0:00:17]} Be7 {[%emt 0:00:11]} 29. h3 {[%emt 0:00:46]} Qe4 {[%emt 0:01:17]} 30. Nd6 {[%emt 0:02:53]} Rxc1 {[%emt 0:01:14]} 31. Nxe4 {[%emt 0:00:06]} Rxd1+ {[%emt 0:00:01]} 32. Kh2 {[%emt 0:00:08]} a3 {[%emt 0:00:52]} 33. bxa3 {[%emt 0:00:30]} b2 {[%emt 0:00:05]} 34. Nc3 {[%emt 0:00:04]} Rxa3 {[%emt 0:01:33]} 35. Qf2 {[%emt 0:00:25]} Rxc3 {[%emt 0:01:04]} 36. Qxb2 {[%emt 0:00:03]} Rcc1 {[%emt 0:01:26]} 37. Qb8+ {[%emt 0:00:13]} Kh7 {[%emt 0:03:36]} 38. Kg3 {[%emt 0:00:42]} Rd3+ {[%emt 0:00:47]} 39. Kf2 {[%emt 0:00:58]} Rc2+ {[%emt 0:00:16]} 40. Kg1 {[%emt 0:00:22]} Rdd2 {[%emt 0:00:31]} 41. Qe8 {[%emt 0:01:16]} Rxg2+ {[%emt 0:00:03]} 42. Kf1 {[%emt 0:00:05]} Rcf2+ {[%emt 0:00:03]} 43. Ke1 {[%emt 0:00:01]} Bb4+ {[%emt 0:00:01]} 44. Kd1 {[%emt 0:00:02]} Rg1# {[%emt 0:00:01]} 0-1